bitfinex-derivatives/quotes_BTCF0:USTF0_20241116
["timestamp","ask_amount","ask_price","bid_price","bid_amount"]
[1731745953350,0.59038826,91431.0,91430.0,0.00010707]
[1731745953550,0.78064664,91431.0,91430.0,0.00010707]
[1731745954162,0.78013948,91431.0,91430.0,0.00010707]
[1731745954363,0.70912241,91431.0,91430.0,0.00010707]
[1731745957759,0.55055122,91431.0,91430.0,0.00010707]
[1731745961255,0.52487552,91431.0,91430.0,0.00010707]
[1731745963156,0.3608,91431.0,91430.0,0.00010707]
[1731745963961,0.52487552,91431.0,91430.0,0.00010707]
[1731745968166,0.55082333,91431.0,91430.0,0.00010707]
[1731745975161,0.3608,91431.0,91430.0,0.00010707]
[1731745975464,0.52487431,91431.0,91430.0,0.00010707]
[1731745976062,0.3608,91431.0,91430.0,0.00010707]
[1731745976566,0.52487769,91431.0,91430.0,0.00010707]
[1731745977066,0.3608,91431.0,91430.0,0.00010707]
[1731745982467,0.3608,91431.0,91421.0,0.32546295]
[1731745982468,0.49647778,91431.0,91418.0,0.32546295]
[1731745982661,0.49647778,91419.0,91405.0,0.39055554]
[1731745982855,0.49647778,91407.0,91404.0,0.02188156]
[1731745983164,0.49647778,91407.0,91377.0,0.0629]
[1731745983165,2.28039914,91407.0,91377.0,0.0629]
[1731745983367,0.1639479,91381.0,91377.0,0.14154]
[1731745983559,0.1639479,91380.0,91377.0,0.0629]
[1731745983872,0.05319737,91379.0,91378.0,9.598e-05]
[1731745984058,0.06783889,91381.0,91378.0,9.598e-05]
[1731745984259,0.2315713,91381.0,91378.0,9.598e-05]
[1731745984465,0.16373241,91379.0,91378.0,9.598e-05]
[1731745984665,0.06783889,91381.0,91378.0,9.598e-05]
[1731745984872,0.16373463,91380.0,91378.0,9.598e-05]
[1731745985062,0.06783889,91381.0,91378.0,0.02198679]
[1731745987071,4.045e-05,91379.0,91378.0,0.02198679]
[1731745987367,4.045e-05,91379.0,91378.0,9.598e-05]
[1731745988172,4.045e-05,91379.0,91378.0,0.05459863]
[1731745988369,4.045e-05,91379.0,91378.0,9.598e-05]
[1731745995770,0.07868045,91379.0,91378.0,9.598e-05]
[1731745998773,4.045e-05,91379.0,91378.0,9.598e-05]
[1731745998974,0.07868045,91379.0,91378.0,9.598e-05]
[1731746000278,0.13406597,91379.0,91378.0,9.598e-05]
[1731746000575,0.07868045,91379.0,91378.0,9.598e-05]
[1731746001873,1.57868045,91379.0,91378.0,9.598e-05]
[1731746002969,1.64651934,91379.0,91378.0,9.598e-05]
[1731746003170,1.57868045,91379.0,91378.0,9.598e-05]
[1731746005167,1.50004045,91379.0,91378.0,9.598e-05]
[1731746005482,1.57868045,91379.0,91378.0,9.598e-05]
[1731746005870,1.50004045,91379.0,91378.0,9.598e-05]
[1731746006073,1.57868045,91379.0,91378.0,9.598e-05]
[1731746006767,1.50004045,91379.0,91378.0,9.598e-05]
[1731746006969,0.07868045,91379.0,91378.0,9.598e-05]
[1731746008082,4.045e-05,91379.0,91378.0,9.598e-05]
[1731746009079,4.045e-05,91379.0,91378.0,0.05519863]
[1731746009277,4.045e-05,91379.0,91378.0,9.598e-05]
[1731746012181,0.16377508,91379.0,91378.0,9.598e-05]
[1731746013177,0.05324551,91379.0,91378.0,9.598e-05]
[1731746013579,4.045e-05,91379.0,91378.0,9.598e-05]
[1731746019682,0.05324574,91379.0,91378.0,9.598e-05]
[1731746019881,4.045e-05,91379.0,91378.0,9.598e-05]
[1731746021586,0.19682054,91379.0,91378.0,9.598e-05]
[1731746022689,0.05320529,91379.0,91378.0,0.32841598]
[1731746022893,0.16396463,91380.0,91378.0,0.32841598]
[1731746023190,0.16906463,91382.0,91379.0,0.39611889]
[1731746023387,0.0051,91382.0,91379.0,0.39611889]
[1731746023694,0.0051,91382.0,91380.0,0.32828]
[1731746024084,0.0051,91382.0,91379.0,0.06783889]
[1731746024085,0.0051,91382.0,91381.0,0.32828]
[1731746024282,0.0051,91382.0,91379.0,0.06783889]
[1731746024283,0.0051,91382.0,91380.0,0.32828]
[1731746024790,0.0051,91382.0,91381.0,0.32828]
[1731746024986,0.0051,91382.0,91380.0,0.32828]
[1731746025388,0.0051,91382.0,91381.0,0.32828]
[1731746025679,0.0051,91382.0,91380.0,0.32828]
[1731746026082,0.0051,91382.0,91381.0,0.39298]
[1731746026283,0.0051,91382.0,91381.0,0.0647]
[1731746026585,0.0051,91382.0,91381.0,0.39298]
[1731746028392,0.3608,91399.0,91381.0,0.39298]
[1731746028592,0.3608,91399.0,91385.0,0.06783889]
[1731746028985,0.06783889,91400.0,91385.0,0.39611889]
[1731746031589,0.3608,91401.0,91385.0,0.39611889]
[1731746032790,0.42863889,91401.0,91385.0,0.39611889]
[1731746033693,0.42863889,91401.0,91385.0,0.75691889]
[1731746037599,0.3608,91401.0,91385.0,0.83555889]
[1731746040490,0.3608,91401.0,91385.0,0.75691889]
[1731746040694,0.3608,91401.0,91385.0,0.83555889]
[1731746043207,0.3608,91401.0,91385.0,0.14647889]
[1731746043208,0.3608,91393.0,91385.0,0.14647889]
[1731746043612,0.16396463,91395.0,91385.0,0.14647889]
[1731746043904,0.0305,91394.0,91385.0,0.14647889]
[1731746044296,0.0305,91394.0,91385.0,0.06783889]
[1731746044506,0.0051,91391.0,91385.0,0.14647889]
[1731746045505,0.10954892,91386.0,91385.0,0.14647889]
[1731746046296,0.10954892,91386.0,91385.0,0.07864]
[1731746049903,0.10954892,91386.0,91381.0,0.0907673]
[1731746049904,0.10954892,91386.0,91381.0,0.0584673]
[1731746050101,0.3608,91382.0,91381.0,0.0584673]
[1731746050405,0.4140004,91382.0,91381.0,0.0051]
[1731746050606,0.3608,91382.0,91381.0,0.0051]
[1731746052013,0.2608,91382.0,91381.0,0.0051]
[1731746052321,0.3608,91448.0,91390.0,0.3608]
[1731746052533,0.3608,91448.0,91432.0,0.06783889]
[1731746052823,0.29121464,91445.0,91443.0,0.32591674]
[1731746053019,0.29121464,91445.0,91444.0,0.71051307]
[1731746053221,0.29121464,91445.0,91444.0,0.46892429]
[1731746053423,0.29121464,91445.0,91444.0,0.08423237]
[1731746055121,0.0317,91452.0,91444.0,0.08423237]
[1731746055318,0.29121464,91446.0,91444.0,0.08423237]
[1731746056110,0.0317,91452.0,91444.0,0.08423237]
[1731746056111,0.29121464,91445.0,91444.0,0.08423237]
[1731746057322,0.29121464,91445.0,91444.0,0.13927331]
[1731746058021,0.0317,91452.0,91444.0,0.15294345]
[1731746058218,0.0317,91452.0,91451.0,0.3608]
[1731746058620,0.32291464,91452.0,91451.0,0.3608]
[1731746059412,0.0317,91452.0,91451.0,0.3608]
[1731746061318,0.10934458,91454.0,91451.0,0.3608]
[1731746061526,0.10934458,91454.0,91453.0,0.10333015]
[1731746063925,0.40055922,91454.0,91453.0,0.08412]
[1731746065830,0.40055922,91454.0,91453.0,0.08408]
[1731746066034,0.10934458,91454.0,91453.0,0.08408]
[1731746066529,0.10934458,91454.0,91451.0,0.3608]
[1731746066726,0.10934458,91454.0,91444.0,0.05515331]
[1731746066727,0.29121464,91452.0,91444.0,0.05515331]
[1731746066923,0.10934458,91454.0,91444.0,0.05515331]
[1731746066924,0.29121464,91448.0,91444.0,0.05515331]
[1731746067126,0.29121464,91448.0,91447.0,0.10333015]
[1731746068636,0.29121464,91448.0,91444.0,0.05515331]
[1731746068931,0.29121464,91447.0,91444.0,0.05515331]
[1731746069524,0.0303,91450.0,91444.0,0.05515331]
[1731746069726,0.29121464,91445.0,91444.0,0.00011237]
[1731746069930,0.29121464,91445.0,91441.0,0.02187419]
[1731746069931,0.29121464,91444.0,91441.0,0.02187419]
[1731746070133,0.29121464,91444.0,91437.0,0.08408]
[1731746070134,0.29121464,91442.0,91434.0,0.10497023]
[1731746070328,0.29121464,91435.0,91434.0,0.18905023]
[1731746070926,0.29121464,91435.0,91434.0,0.24500912]
[1731746074138,0.29121464,91435.0,91434.0,0.26688367]
[1731746074529,0.3608,91449.0,91434.0,0.26688367]
[1731746074738,0.3608,91449.0,91434.0,0.16355352]
[1731746074938,0.29121464,91443.0,91434.0,0.16355352]
[1731746078240,0.29121464,91443.0,91442.0,0.10333015]
[1731746078439,0.3608,91449.0,91442.0,0.10333015]
[1731746078635,0.29121464,91444.0,91442.0,0.10333015]
[1731746080939,0.29121464,91444.0,91443.0,0.08408]
[1731746090342,0.29121464,91444.0,91443.0,0.26048839]
[1731746090639,0.29121464,91444.0,91442.0,0.02187425]
[1731746090843,0.29121464,91443.0,91442.0,0.02187425]
[1731746092252,0.29121464,91443.0,91439.0,0.0051]
[1731746092448,0.29121464,91440.0,91439.0,0.0051]
[1731746095345,0.29121464,91440.0,91436.0,0.26053085]
[1731746095663,0.05317524,91439.0,91419.0,0.02187455]
[1731746095850,0.3608,91424.0,91419.0,0.02187455]
[1731746096449,0.3608,91424.0,91420.0,0.00012644]
[1731746096950,0.3608,91424.0,91421.0,0.10333015]
[1731746097553,0.0302,91429.0,91421.0,0.10333015]
[1731746099455,0.10938046,91424.0,91421.0,0.10333015]
[1731746102664,0.10938046,91424.0,91422.0,0.10713299]
[1731746102957,0.10938046,91424.0,91423.0,0.01747742]
[1731746103350,0.10938046,91424.0,91423.0,0.10019742]
[1731746103758,0.10938046,91424.0,91423.0,0.4656595]
[1731746104370,0.10938046,91424.0,91423.0,0.46185666]
[1731746104555,0.10938046,91424.0,91423.0,0.55531845]
[1731746104852,0.10938046,91424.0,91423.0,0.56899274]
[1731746106757,0.10938046,91424.0,91423.0,0.46566259]
[1731746107063,0.10938046,91424.0,91423.0,0.56518652]
[1731746107873,0.10938046,91424.0,91423.0,0.94268329]
[1731746108055,0.10938046,91424.0,91423.0,0.95635712]
[1731746108766,0.10938046,91424.0,91423.0,0.92086097]
[1731746109255,0.08251209,91424.0,91423.0,0.92086097]
[1731746109452,0.08251209,91424.0,91423.0,0.92049058]
[1731746109860,0.08251209,91424.0,91423.0,0.52968991]
[1731746110652,0.08251209,91424.0,91423.0,0.92049058]
[1731746110858,0.08251209,91424.0,91423.0,0.52968991]
[1731746111360,0.08251209,91424.0,91423.0,0.51601608]
[1731746111761,0.08251209,91424.0,91423.0,0.52969001]
[1731746112357,0.08251209,91424.0,91423.0,0.44697001]
[1731746112552,0.08251209,91424.0,91423.0,0.52857001]
[1731746112751,0.08251209,91424.0,91423.0,0.51489608]
[1731746113759,0.08251209,91424.0,91423.0,0.149434]
[1731746113966,0.08251209,91424.0,91423.0,0.51186581]
[1731746114163,0.08251209,91424.0,91423.0,0.44403181]
[1731746115688,0.07867209,91424.0,91423.0,0.44403181]
[1731746115864,0.07867209,91424.0,91423.0,0.87556124]
[1731746116359,0.05529268,91424.0,91423.0,0.44403181]
[1731746116761,0.0399,91440.0,91423.0,0.97854905]
[1731746116960,0.0399,91440.0,91439.0,0.10333247]
[1731746117165,0.07,91442.0,91439.0,0.18493247]
[1731746117664,0.07,91442.0,91439.0,0.38040685]
[1731746117860,0.07,91442.0,91440.0,0.19547438]
[1731746118365,0.0399,91442.0,91439.0,0.18493247]
[1731746118569,0.0399,91442.0,91440.0,0.19547438]
[1731746118867,0.0399,91442.0,91441.0,0.19544427]
[1731746119171,0.0399,91442.0,91439.0,0.23881738]
[1731746119767,0.0399,91442.0,91440.0,0.01367208]
[1731746119964,0.0399,91442.0,91440.0,0.3608]
[1731746120160,0.0399,91442.0,91441.0,0.01367184]
[1731746120769,0.0399,91442.0,91440.0,0.3608]
[1731746120961,0.4007,91449.0,91440.0,0.3608]
[1731746121170,0.4007,91449.0,91443.0,0.19541254]
[1731746121365,0.4007,91449.0,91442.0,0.19541254]
[1731746122563,0.4007,91449.0,91443.0,0.0816]
[1731746123971,0.0399,91449.0,91440.0,0.55717254]
[1731746124272,0.0399,91449.0,91441.0,0.0816]
[1731746125868,0.0399,91449.0,91448.0,0.10333247]
[1731746126059,0.14924458,91454.0,91448.0,0.10333247]
[1731746126467,0.14924458,91454.0,91448.0,0.42886546]
[1731746126672,0.14924458,91454.0,91448.0,0.10333247]
[1731746127576,0.14924458,91454.0,91448.0,0.46413247]
[1731746129464,0.14924458,91454.0,91447.0,0.02187438]
[1731746129669,0.0306,91453.0,91451.0,0.19527319]
[1731746129864,0.0306,91453.0,91450.0,0.19527319]
[1731746130071,0.0303,91452.0,91450.0,0.19527319]
[1731746130577,0.0303,91452.0,91450.0,0.1952947]
[1731746130875,0.0303,91452.0,91445.0,0.0816]
[1731746130876,0.0303,91452.0,91451.0,0.1952947]
[1731746131179,0.0303,91452.0,91445.0,0.13708984]
[1731746135078,0.0303,91452.0,91445.0,0.0816]
[1731746135680,0.3608,91451.0,91444.0,0.0816]
[1731746135874,0.3608,91451.0,91443.0,0.0051]
[1731746135875,0.26716013,91449.0,91443.0,0.0051]
[1731746136072,0.16382766,91448.0,91443.0,0.0051]
[1731746136301,0.16382766,91447.0,91443.0,0.0051]
[1731746137272,0.031,91448.0,91443.0,0.0051]
[1731746137273,0.16382766,91446.0,91443.0,0.0051]
[1731746137471,0.16382766,91445.0,91443.0,0.0051]
[1731746140672,0.031,91448.0,91443.0,0.0051]
[1731746140877,0.031,91448.0,91446.0,0.19548853]
[1731746141074,0.031,91448.0,91447.0,0.19548853]
[1731746141272,0.031,91448.0,91446.0,0.19548149]
[1731746141981,0.031,91448.0,91447.0,0.19551551]
[1731746142373,0.031,91448.0,91446.0,0.19551551]
[1731746142692,0.031,91448.0,91447.0,0.19551551]
[1731746143574,0.031,91448.0,91443.0,0.0051]
[1731746144079,0.031,91448.0,91447.0,0.19555316]
[1731746145282,0.031,91448.0,91446.0,0.19555316]
[1731746145581,0.031,91448.0,91443.0,0.0051]
[1731746147277,0.031,91448.0,91447.0,0.1955764]
[1731746147677,0.35904,91448.0,91447.0,0.1955764]
[1731746147981,0.4122058,91448.0,91443.0,0.0051]
[1731746148177,0.16378213,91445.0,91443.0,0.0051]
[1731746148481,0.16378213,91444.0,91443.0,0.0051]
[1731746148690,0.16378213,91444.0,91441.0,0.05391543]
[1731746148877,0.16378213,91444.0,91439.0,0.02187536]
[1731746149478,0.16378213,91445.0,91439.0,0.02187536]
[1731746150077,0.3608,91440.0,91439.0,0.02187536]
[1731746150273,0.3608,91440.0,91438.0,0.0051]
[1731746150580,0.05317211,91439.0,91438.0,0.0051]
[1731746150782,0.31592599,91439.0,91433.0,0.0051]
[1731746150979,0.23162475,91434.0,91433.0,0.0051]
[1731746151179,0.23162475,91434.0,91428.0,0.0051]
[1731746151180,0.0678591,91434.0,91428.0,0.0051]
[1731746151381,0.4286591,91429.0,91428.0,0.0051]
[1731746151580,0.4286591,91429.0,91423.0,0.0614284]
[1731746151779,0.0678591,91424.0,91423.0,0.0061]
[1731746151986,0.0678591,91424.0,91423.0,0.001]
[1731746152879,0.13551878,91428.0,91423.0,0.001]
[1731746156884,0.32812,91427.0,91423.0,0.001]
[1731746157988,0.32812,91426.0,91423.0,0.001]
[1731746158191,0.13551878,91428.0,91423.0,0.001]
[1731746158192,0.46363878,91428.0,91423.0,0.001]
[1731746158380,0.13551878,91428.0,91423.0,0.001]
[1731746158582,0.46363878,91428.0,91423.0,0.001]
[1731746158786,0.13551878,91428.0,91423.0,0.001]
[1731746160787,0.3608,91429.0,91420.0,0.00012644]
[1731746160992,0.3608,91429.0,91423.0,0.1955764]
[1731746161291,0.3608,91429.0,91426.0,0.1955764]
[1731746161991,0.10341878,91427.0,91426.0,0.1955764]
[1731746162197,0.10341878,91427.0,91420.0,0.00012644]
[1731746162397,0.3608,91421.0,91420.0,0.00012644]
[1731746162994,0.98896,91421.0,91418.0,0.0051]
[1731746163296,0.10341878,91419.0,91418.0,0.0051]
[1731746163488,0.10341878,91419.0,91410.0,0.00103]
[1731746163489,1.60341878,91419.0,91413.0,0.0051]
[1731746163689,0.46421878,91414.0,91413.0,0.0051]
[1731746163889,0.46421878,91414.0,91410.0,0.00103]
[1731746164089,0.0625,91413.0,91410.0,0.00103]
[1731746164296,1.5,91412.0,91410.0,0.00103]
[1731746164598,0.0804,91411.0,91410.0,0.00103]
[1731746165295,0.4086,91411.0,91410.0,0.00103]
[1731746165597,0.4086,91411.0,91407.0,0.0051]
[1731746165598,0.7086,91411.0,91407.0,0.0051]
[1731746165893,0.3608,91408.0,91407.0,0.0051]
[1731746166093,0.3608,91408.0,91405.0,0.00012023]
[1731746166399,0.10341878,91406.0,91405.0,0.00012023]
[1731746174690,0.18713878,91406.0,91405.0,0.00012023]
[1731746179799,1.68713878,91406.0,91405.0,0.00012023]
[1731746181202,1.60341878,91406.0,91405.0,0.00012023]
[1731746181399,1.68713878,91406.0,91405.0,0.00012023]
[1731746181702,1.68713878,91406.0,91405.0,0.00112023]
[1731746182792,1.71954452,91406.0,91405.0,0.00112023]
[1731746185100,2.44114452,91406.0,91405.0,0.00112023]
[1731746186304,2.4943423,91406.0,91405.0,0.00112023]
[1731746188207,2.61549459,91406.0,91405.0,0.00112023]
[1731746188503,2.61549459,91406.0,91401.0,0.0051]
[1731746188813,0.17438237,91405.0,91382.0,0.0307]
[1731746189008,0.42871226,91383.0,91382.0,0.0307]
[1731746189403,0.5923617,91383.0,91363.0,0.1955764]
[1731746189595,0.06791226,91378.0,91368.0,0.0314]
[1731746189799,0.06791226,91378.0,91377.0,0.03160548]
[1731746191703,0.42871226,91378.0,91377.0,0.03160548]
[1731746197610,0.42871226,91378.0,91377.0,0.00010548]
[1731746199912,0.42871226,91378.0,91377.0,0.19607924]
[1731746201019,0.4007,91378.0,91370.0,0.0326]
[1731746201204,0.3608,91376.0,91358.0,0.0332]
[1731746201410,0.3608,91365.0,91358.0,0.0332]
[1731746201814,0.3608,91365.0,91344.0,0.3909841]
[1731746201815,0.7216,91365.0,91359.0,9.559e-05]
[1731746202118,0.06791226,91360.0,91359.0,9.559e-05]
[1731746202815,0.13582452,91360.0,91359.0,9.559e-05]
[1731746203017,0.10781226,91360.0,91359.0,9.559e-05]
[1731746203407,0.10781226,91360.0,91337.0,0.32553299]
[1731746203610,0.3608,91345.0,91334.0,0.13011226]
[1731746203816,0.3608,91345.0,91334.0,0.0622]
[1731746204414,0.3608,91345.0,91337.0,0.06791226]
[1731746205413,0.0051,91346.0,91342.0,0.06791226]
[1731746207314,0.0051,91346.0,91345.0,0.06791226]
[1731746207530,0.0051,91352.0,91345.0,0.06791226]
[1731746208526,0.0051,91352.0,91338.0,0.02189887]
[1731746208717,0.0051,91352.0,91341.0,0.06791226]
[1731746209030,0.0051,91352.0,91338.0,0.02189887]
[1731746210530,0.10867032,91352.0,91338.0,0.02189887]
[1731746210825,0.0051,91352.0,91338.0,0.02189887]
[1731746212123,0.0051,91352.0,91335.0,9.065e-05]
[1731746212124,0.3608,91340.0,91335.0,9.065e-05]
[1731746212930,0.3608,91340.0,91336.0,0.10357032]
[1731746213318,0.3608,91340.0,91335.0,9.065e-05]
[1731746214422,0.3608,91340.0,91335.0,0.10366097]
[1731746216330,0.3608,91340.0,91339.0,0.10357032]
[1731746216532,0.3608,91340.0,91335.0,9.065e-05]
[1731746216720,0.3608,91340.0,91339.0,0.10357032]
[1731746216920,0.0399,91341.0,91339.0,0.10357032]
[1731746218930,0.0399,91343.0,91339.0,0.10357032]
[1731746224626,0.0399,91343.0,91335.0,0.11195065]
[1731746224829,0.0399,91343.0,91342.0,0.10357032]
[1731746228335,0.0399,91343.0,91335.0,0.13385079]
[1731746228838,0.0399,91343.0,91341.0,0.06797482]
[1731746234928,0.0399,91343.0,91335.0,0.42996378]
[1731746235138,0.0399,91343.0,91342.0,0.06797482]
[1731746235731,0.0399,91343.0,91335.0,0.10355079]
[1731746236043,0.0399,91343.0,91339.0,0.06797482]
[1731746236938,0.0399,91343.0,91342.0,0.001]
[1731746238332,0.09312516,91343.0,91342.0,0.001]
[1731746239345,0.28950449,91343.0,91342.0,0.001]
[1731746239842,0.09312516,91343.0,91342.0,0.001]
[1731746240048,0.28950449,91343.0,91342.0,0.001]
[1731746240339,0.09312516,91343.0,91342.0,0.001]
[1731746240540,0.28950449,91343.0,91342.0,0.001]
[1731746241541,0.09312516,91343.0,91342.0,0.001]
[1731746242540,0.23686425,91343.0,91342.0,0.001]
[1731746242937,0.09312516,91343.0,91342.0,0.001]
[1731746243143,0.23686517,91343.0,91342.0,0.001]
[1731746243343,0.09312516,91343.0,91342.0,0.001]
[1731746244234,0.29009033,91343.0,91342.0,0.001]
[1731746244940,0.09312516,91343.0,91342.0,0.001]
[1731746245634,0.29009033,91343.0,91342.0,0.001]
[1731746245839,0.09312516,91343.0,91342.0,0.001]
[1731746246347,0.0399,91343.0,91342.0,0.001]
[1731746247143,0.0399,91343.0,91342.0,0.06897482]
[1731746248536,0.0302,91345.0,91342.0,0.06897482]
[1731746248537,0.0399,91344.0,91342.0,0.06897482]
[1731746250635,0.0399,91344.0,91342.0,0.001]
[1731746253447,0.05322507,91343.0,91342.0,0.001]
[1731746254338,0.09312507,91343.0,91342.0,0.001]
[1731746260453,0.0399,91343.0,91342.0,0.001]
[1731746266261,0.0302,91345.0,91342.0,0.001]
[1731746266262,0.0399,91344.0,91342.0,0.001]
[1731746267554,0.0399,91344.0,91342.0,0.32653299]
[1731746267766,0.0399,91344.0,91342.0,0.001]
[1731746270046,0.3608,91343.0,91342.0,0.001]
[1731746275456,0.53737775,91343.0,91342.0,0.001]
[1731746279368,0.41402583,91343.0,91342.0,0.001]
[1731746280366,0.41402583,91343.0,91342.0,0.06897482]
[1731746280776,0.41402583,91343.0,91342.0,0.001]
[1731746281073,0.41402277,91343.0,91342.0,0.06897482]
[1731746282768,0.41402277,91343.0,91342.0,0.13694964]
[1731746283375,0.3608,91343.0,91342.0,0.49460887]
[1731746284675,0.0399,91344.0,91342.0,0.13694964]
[1731746284877,0.0399,91344.0,91343.0,0.13594964]
[1731746285073,0.0399,91344.0,91343.0,0.39549352]
[1731746285273,0.0399,91344.0,91343.0,0.06797482]
[1731746286182,0.0399,91344.0,91342.0,0.001]
[1731746287079,0.0399,91344.0,91342.0,0.06897482]
[1731746287686,0.3608,91343.0,91342.0,0.001]
[1731746288288,0.3608,91343.0,91342.0,0.26311184]
[1731746288685,0.3608,91343.0,91342.0,0.001]
[1731746291977,0.3608,91343.0,91342.0,0.06897482]
[1731746294686,0.3608,91343.0,91342.0,0.13694964]
[1731746294884,0.0399,91344.0,91342.0,0.13694964]
[1731746295185,0.0399,91344.0,91342.0,0.06897482]
[1731746295582,0.0399,91344.0,91342.0,0.39649352]
[1731746295794,0.0381,91351.0,91342.0,0.39649352]
[1731746295795,0.0399,91350.0,91342.0,0.39649352]
[1731746295982,0.0399,91350.0,91349.0,0.06797482]
[1731746297890,0.0399,91350.0,91349.0,0.32983971]
[1731746298594,0.09312004,91350.0,91349.0,0.06797482]
[1731746299289,0.09312004,91350.0,91349.0,0.13594964]
[1731746299488,0.09312004,91350.0,91349.0,0.21534964]
[1731746299687,0.09312004,91350.0,91349.0,0.57614964]
[1731746300188,0.0399,91350.0,91349.0,0.57614964]
[1731746300891,0.00568798,91350.0,91349.0,0.57991689]
[1731746301101,0.00568798,91350.0,91349.0,0.57614964]
[1731746301285,0.00568798,91350.0,91349.0,0.41884294]
[1731746301483,0.00568798,91350.0,91349.0,0.56621776]
[1731746301685,0.00568798,91350.0,91349.0,0.56245661]
[1731746304893,0.01138798,91350.0,91349.0,0.56245661]
[1731746305690,0.01138798,91350.0,91349.0,0.49444179]
[1731746305996,0.01138798,91350.0,91349.0,0.56241661]
[1731746306204,0.01138798,91350.0,91349.0,0.82390892]
[1731746306417,0.01138798,91350.0,91349.0,0.82394051]
[1731746306699,0.01138798,91350.0,91349.0,0.82393313]
[1731746306902,0.01138798,91350.0,91349.0,0.56241661]
[1731746308002,0.01138798,91350.0,91349.0,0.8239195]
[1731746308391,0.01138798,91350.0,91349.0,0.82392038]
[1731746308899,0.01138798,91350.0,91349.0,0.56241661]
[1731746311799,0.01138798,91350.0,91349.0,0.5311162]
[1731746312302,0.01138798,91350.0,91349.0,0.26959143]
[1731746313297,0.01138798,91350.0,91349.0,0.63039143]
[1731746313597,0.06460584,91350.0,91349.0,0.63039143]
[1731746314099,0.17525932,91350.0,91349.0,0.63039143]
[1731746314303,0.06460443,91350.0,91349.0,0.63039143]
[1731746314498,0.01138798,91350.0,91349.0,0.63039143]
[1731746314798,0.17525992,91350.0,91349.0,0.63039143]
[1731746315803,0.06460525,91350.0,91349.0,0.63039143]
[1731746315998,0.01138798,91350.0,91349.0,0.63039143]
[1731746316507,0.06460531,91350.0,91349.0,0.63039143]
[1731746317404,0.01138798,91350.0,91349.0,0.63039143]
[1731746317799,0.01138798,91350.0,91349.0,0.26959143]
[1731746318096,0.06460531,91350.0,91349.0,0.26959143]
[1731746318309,0.01138798,91350.0,91349.0,0.26959143]
[1731746318796,0.06460531,91350.0,91349.0,0.26959143]
[1731746319105,0.01138798,91350.0,91349.0,0.26959143]
[1731746319697,0.06460434,91350.0,91349.0,0.26959143]
[1731746320599,0.01138798,91350.0,91349.0,0.26959143]
[1731746321201,0.01138798,91350.0,91349.0,0.63039143]
[1731746321596,0.01138798,91350.0,91349.0,1.31192871]
[1731746322204,0.01138798,91350.0,91349.0,0.63039143]
[1731746322708,0.01138798,91350.0,91349.0,0.59711013]
[1731746323206,0.01138798,91350.0,91349.0,0.95115531]
[1731746323509,0.01138798,91350.0,91349.0,0.62363661]
[1731746323704,0.01138798,91350.0,91349.0,0.26959143]
[1731746325309,0.01138798,91350.0,91349.0,0.5966773]
[1731746326503,0.01138798,91350.0,91349.0,0.95103266]
[1731746327009,0.01138798,91350.0,91349.0,0.95103096]
[1731746327508,0.01138798,91350.0,91349.0,0.62394509]
[1731746328498,0.01138798,91350.0,91349.0,0.26959143]
[1731746329106,0.06460434,91350.0,91349.0,0.26959143]
[1731746335114,0.20841545,91350.0,91349.0,0.26959143]
[1731746335309,0.06460434,91350.0,91349.0,0.26959143]
[1731746335513,0.01138798,91350.0,91349.0,1.0139452]
[1731746336315,0.01138798,91350.0,91349.0,1.01393633]
[1731746337728,0.01138798,91350.0,91349.0,0.62295223]
[1731746338230,0.01138798,91350.0,91349.0,1.01570273]
[1731746338927,0.01138798,91350.0,91349.0,0.62295223]
[1731746340626,0.0051,91359.0,91349.0,1.0836011]
[1731746340855,0.3933,91363.0,91357.0,0.13594964]
[1731746340856,0.3608,91363.0,91357.0,0.13594964]
[1731746341052,0.0307,91366.0,91362.0,0.46310646]
[1731746341251,0.0307,91366.0,91364.0,0.32697678]
[1731746341453,0.0307,91366.0,91363.0,0.4328969]
[1731746341454,0.0307,91366.0,91365.0,0.68064209]
[1731746341755,0.0307,91366.0,91365.0,0.35370108]
[1731746341950,0.0307,91366.0,91365.0,0.37118336]
[1731746342155,0.0326,91376.0,91365.0,0.37118336]
[1731746342352,0.0326,91376.0,91375.0,0.06797482]
[1731746342557,0.0326,91376.0,91375.0,0.40832289]
[1731746342757,0.0326,91376.0,91375.0,0.14697482]
[1731746343152,0.0326,91376.0,91375.0,0.4081855]
[1731746343351,0.0313,91383.0,91375.0,0.21494964]
[1731746343555,0.0313,91383.0,91382.0,0.13594964]
[1731746343756,0.0313,91383.0,91377.0,0.19590763]
[1731746344057,0.0313,91383.0,91382.0,0.13594964]
[1731746347361,0.0313,91383.0,91375.0,0.3293977]
[1731746347554,0.0313,91383.0,91382.0,0.06797482]
[1731746348360,0.09927482,91383.0,91375.0,0.05449007]
[1731746348663,0.0313,91383.0,91380.0,0.06797482]
[1731746350662,0.19702747,91381.0,91380.0,0.06797482]
[1731746350855,0.25023128,91381.0,91380.0,0.06797482]
[1731746351160,0.25023128,91381.0,91380.0,0.12335495]
[1731746351364,0.05320381,91381.0,91380.0,0.12335495]
[1731746351657,0.25023128,91381.0,91380.0,0.12335495]
[1731746352465,0.24950892,91381.0,91380.0,0.12335495]
[1731746352765,0.05320381,91381.0,91380.0,0.12335495]
[1731746352963,0.05320381,91381.0,91350.0,0.06797482]
[1731746352964,0.32828,91381.0,91347.0,0.19590763]
[1731746353160,0.16358957,91366.0,91360.0,0.06797482]
[1731746353361,0.42877482,91375.0,91353.0,0.07896]
[1731746353362,0.16358957,91362.0,91353.0,0.07896]
[1731746353562,0.16358957,91361.0,91353.0,0.07896]
[1731746353866,0.16358957,91360.0,91353.0,0.07896]
[1731746354359,0.16358957,91360.0,91359.0,0.06797482]
[1731746354668,0.05321133,91364.0,91359.0,0.06797482]
[1731746354860,0.05321194,91363.0,91359.0,0.06797482]
[1731746355766,0.05321194,91363.0,91353.0,0.07896]
[1731746356070,0.16363429,91358.0,91353.0,0.07896]
[1731746357060,0.16363429,91357.0,91353.0,0.07896]
[1731746357267,0.16363429,91357.0,91356.0,0.06797482]
[1731746358666,0.0316,91363.0,91356.0,0.06797482]
[1731746358870,0.0316,91363.0,91362.0,0.06797482]
[1731746362160,0.3608,91372.0,91362.0,0.13594964]
[1731746362361,0.0323,91370.0,91368.0,0.13594964]
[1731746362968,0.3608,91384.0,91369.0,0.27473394]
[1731746363171,0.0323,91379.0,91370.0,0.19573394]
[1731746363466,0.0323,91379.0,91378.0,0.06797482]
[1731746365659,0.0323,91379.0,91378.0,0.12387694]
[1731746365660,0.08550452,91379.0,91378.0,0.12387694]